fUST/lending_fUST_20260525
["ID","MTS","AMOUNT","RATE_DAILY","PERIOD"]
[422935230,1779652037000,-500.0,8.219e-05,2]
[422935231,1779652037000,-500.0,8.219e-05,2]
[422935227,1779652037000,-500.0,8.219e-05,2]
[422935268,1779652038000,-555.07780718,8.493e-05,2]
[422935259,1779652038000,-500.0,8.219e-05,2]
[422935266,1779652038000,-500.0,8.493e-05,2]
[422935265,1779652038000,-500.0,8.493e-05,2]
[422935262,1779652038000,-300.0,8.382e-05,2]
[422935264,1779652038000,-408.18,8.493e-05,2]
[422935263,1779652038000,-500.0,8.491e-05,2]
[422935261,1779652038000,-300.0,8.382e-05,2]
[422935260,1779652038000,-500.0,8.219e-05,2]
[422935258,1779652038000,-500.0,8.219e-05,2]
[422935247,1779652038000,-500.0,8.219e-05,2]
[422935256,1779652038000,-612.25227819,8.219e-05,2]
[422935255,1779652038000,-500.0,8.219e-05,2]
[422935253,1779652038000,-500.0,8.219e-05,2]
[422935250,1779652038000,-500.0,8.219e-05,2]
[422935252,1779652038000,-500.0,8.219e-05,2]
[422935251,1779652038000,-500.0,8.219e-05,2]
[422935248,1779652038000,-500.0,8.219e-05,2]
[422935249,1779652038000,-363.29922904,8.219e-05,2]
[422935246,1779652038000,-500.0,8.219e-05,2]
[422935269,1779652038000,-280.12,8.493e-05,2]
[422935257,1779652038000,-500.0,8.219e-05,2]
[422935270,1779652038000,-500.0,8.493e-05,2]
[422935254,1779652038000,-500.0,8.219e-05,2]
[422935271,1779652038000,-223.63,8.493e-05,2]
[422935267,1779652038000,-500.0,8.493e-05,2]
[422935293,1779652038000,-500.0,8.493e-05,2]
[422935290,1779652038000,-500.0,8.493e-05,2]
[422935289,1779652038000,-500.0,8.493e-05,2]
[422935291,1779652038000,-500.0,8.493e-05,2]
[422935288,1779652038000,-500.0,8.493e-05,2]
[422935287,1779652038000,-500.0,8.493e-05,2]
[422935286,1779652038000,-500.50540219,8.493e-05,2]
[422935294,1779652038000,-46.47827266,8.493e-05,2]
[422935285,1779652038000,-500.0,8.493e-05,2]
[422935284,1779652038000,-500.0,8.493e-05,2]
[422935292,1779652038000,-500.0,8.493e-05,2]
[422935282,1779652038000,-500.0,8.493e-05,2]
[422935279,1779652038000,-315.76962752,8.493e-05,2]
[422935280,1779652038000,-500.0,8.493e-05,2]
[422935281,1779652038000,-500.0,8.493e-05,2]
[422935278,1779652038000,-500.0,8.493e-05,2]
[422935276,1779652038000,-500.0,8.493e-05,2]
[422935272,1779652038000,-500.0,8.493e-05,2]
[422935277,1779652038000,-500.0,8.493e-05,2]
[422935274,1779652038000,-500.0,8.493e-05,2]
[422935275,1779652038000,-363.5144778,8.493e-05,2]
[422935273,1779652038000,-500.0,8.493e-05,2]
[422935283,1779652038000,-500.0,8.493e-05,2]
[422935295,1779652046000,-416.45048477,8.219e-05,2]
[422935297,1779652051000,-83.54951523,8.219e-05,2]
[422935298,1779652051000,-232.526742,8.219e-05,2]
[422935302,1779652052000,-37.96615171,8.219e-05,2]
[422935301,1779652052000,-500.0,8.219e-05,2]
[422935300,1779652052000,-500.0,8.219e-05,2]
[422935299,1779652052000,-267.473258,8.219e-05,2]
[422935303,1779652082000,-462.03384829,8.219e-05,2]
[422935310,1779652161000,-500.0,8.219e-05,2]
[422935305,1779652161000,-300.0,8.217e-05,2]
[422935307,1779652161000,-500.0,8.219e-05,2]
[422935306,1779652161000,-518.87876824,8.219e-05,2]
[422935311,1779652161000,-500.0,8.219e-05,2]
[422935308,1779652161000,-500.6097746,8.219e-05,2]
[422935312,1779652161000,-511.2,8.219e-05,2]
[422935319,1779652161000,-500.0,8.219e-05,2]
[422935313,1779652161000,-500.0,8.219e-05,2]
[422935314,1779652161000,-500.0,8.219e-05,2]
[422935316,1779652161000,-305.45072471,8.219e-05,2]
[422935315,1779652161000,-500.0,8.219e-05,2]
[422935318,1779652161000,-500.0,8.219e-05,2]
[422935317,1779652161000,-500.0,8.219e-05,2]
[422935320,1779652161000,-112.07235341,8.219e-05,2]
[422935309,1779652161000,-500.0,8.219e-05,2]
[422935335,1779652169000,-152.72878394,8.488e-05,7]
[422935338,1779652169000,-181.60018203,8.49e-05,2]
[422935337,1779652169000,-500.0,8.49e-05,2]
[422935334,1779652169000,-189.20877741,8.353e-05,2]
[422935333,1779652169000,-500.0,8.219e-05,2]
[422935332,1779652169000,-500.0,8.219e-05,2]
[422935331,1779652169000,-500.0,8.219e-05,2]
[422935330,1779652169000,-500.0,8.219e-05,2]
[422935326,1779652169000,-571.82,8.219e-05,2]
[422935329,1779652169000,-560.63,8.219e-05,2]
[422935327,1779652169000,-500.0,8.219e-05,2]
[422935325,1779652169000,-500.0,8.219e-05,2]
[422935324,1779652169000,-632.87,8.219e-05,2]
[422935322,1779652169000,-500.0,8.219e-05,2]
[422935323,1779652169000,-500.0,8.219e-05,2]
[422935321,1779652169000,-388.75303947,8.219e-05,2]
[422935340,1779652169000,-500.0,8.49e-05,2]
[422935328,1779652169000,-562.43,8.219e-05,2]
[422935343,1779652169000,-500.0,8.49e-05,2]
[422935336,1779652169000,-500.0,8.49e-05,2]
[422935339,1779652169000,-500.0,8.49e-05,2]
[422935342,1779652169000,-505.95369804,8.49e-05,2]
[422935360,1779652169000,-500.0,8.493e-05,2]
[422935359,1779652169000,-500.0,8.493e-05,2]
[422935356,1779652169000,-500.0,8.493e-05,2]
[422935358,1779652169000,-500.0,8.493e-05,2]
[422935354,1779652169000,-191.67444307,8.493e-05,2]
[422935355,1779652169000,-507.34823304,8.493e-05,2]
[422935353,1779652169000,-544.90771613,8.492e-05,2]
[422935352,1779652169000,-500.0,8.492e-05,2]
[422935357,1779652169000,-500.0,8.493e-05,2]
[422935349,1779652169000,-500.0,8.492e-05,2]
[422935351,1779652169000,-500.0,8.492e-05,2]
[422935345,1779652169000,-500.0,8.492e-05,2]
[422935346,1779652169000,-500.0,8.492e-05,2]
[422935344,1779652169000,-500.0,8.49e-05,2]
[422935341,1779652169000,-500.0,8.49e-05,2]
[422935347,1779652169000,-500.0,8.492e-05,2]
[422935348,1779652169000,-500.0,8.492e-05,2]
[422935350,1779652169000,-519.79261733,8.492e-05,2]
[422935361,1779652169000,-500.0,8.493e-05,2]
[422935375,1779652170000,-500.0,8.493e-05,2]
[422935381,1779652170000,-500.0,8.493e-05,2]
[422935380,1779652170000,-500.0,8.493e-05,2]
[422935376,1779652170000,-500.0,8.493e-05,2]
[422935377,1779652170000,-500.0,8.493e-05,2]
[422935379,1779652170000,-500.0,8.493e-05,2]
[422935374,1779652170000,-500.0,8.493e-05,2]
[422935378,1779652170000,-501.53741384,8.493e-05,2]
[422935373,1779652170000,-500.0,8.493e-05,2]
[422935362,1779652170000,-500.0,8.493e-05,2]
[422935369,1779652170000,-500.0,8.493e-05,2]
[422935371,1779652170000,-500.0,8.493e-05,2]
[422935370,1779652170000,-500.0,8.493e-05,2]
[422935366,1779652170000,-500.0,8.493e-05,2]
[422935365,1779652170000,-500.0,8.493e-05,2]
[422935364,1779652170000,-500.0,8.493e-05,2]
[422935367,1779652170000,-500.0,8.493e-05,2]
[422935368,1779652170000,-609.65342407,8.493e-05,2]
[422935382,1779652170000,-501.36672553,8.493e-05,2]
[422935363,1779652170000,-487.13,8.493e-05,2]
[422935372,1779652170000,-500.0,8.493e-05,2]
[422935384,1779652170000,-207.19093634,8.493e-05,2]
[422935386,1779652170000,-500.0,8.493e-05,2]
[422935385,1779652170000,-171.39956595,8.493e-05,2]
[422935407,1779652170000,-403.74677497,8.493e-05,2]
[422935406,1779652170000,-500.0,8.493e-05,2]
[422935404,1779652170000,-500.63874499,8.493e-05,2]
[422935383,1779652170000,-500.0,8.493e-05,2]
[422935405,1779652170000,-500.0,8.493e-05,2]
[422935403,1779652170000,-500.0,8.493e-05,2]
[422935402,1779652170000,-473.3816067,8.493e-05,2]
[422935400,1779652170000,-500.0,8.493e-05,2]
[422935395,1779652170000,-500.0,8.493e-05,2]
[422935398,1779652170000,-500.49892054,8.493e-05,2]
[422935401,1779652170000,-500.0,8.493e-05,2]
[422935397,1779652170000,-500.0,8.493e-05,2]
[422935396,1779652170000,-500.0,8.493e-05,2]
[422935388,1779652170000,-500.0,8.493e-05,2]
[422935389,1779652170000,-500.0,8.493e-05,2]
[422935393,1779652170000,-500.0,8.493e-05,2]
[422935387,1779652170000,-538.80465203,8.493e-05,2]
[422935392,1779652170000,-500.0,8.493e-05,2]
[422935390,1779652170000,-561.87,8.493e-05,2]
[422935394,1779652170000,-480.82922084,8.493e-05,2]
[422935399,1779652170000,-500.0,8.493e-05,2]
[422935391,1779652170000,-479.09,8.493e-05,2]
[422935426,1779652231000,-239.67,8.219e-05,2]
[422935494,1779652232000,-500.0,8.49e-05,2]
[422935498,1779652232000,-96.25322503,8.493e-05,2]
[422935501,1779652232000,-500.0,8.493e-05,2]
[422935496,1779652232000,-1200.0,8.492e-05,2]
[422935490,1779652232000,-500.0,8.49e-05,2]
[422935429,1779652232000,-64.46367797,8.219e-05,2]
[422935486,1779652232000,-95.57563424,8.219e-05,2]
[422935437,1779652232000,-404.42436576,8.219e-05,2]
[422935434,1779652232000,-500.0,8.219e-05,2]
[422935432,1779652232000,-133.07563424,8.219e-05,2]
[422935492,1779652232000,-500.0,8.49e-05,2]
[422935488,1779652232000,-500.0,8.49e-05,2]
[422935503,1779652232000,-500.0,8.493e-05,2]
[422935530,1779652232000,-304.55,8.493e-05,2]
[422935507,1779652232000,-500.0,8.493e-05,2]
[422935533,1779652232000,-56.09976592,8.764e-05,2]
[422935525,1779652232000,-500.0,8.493e-05,2]
[422935527,1779652232000,-202.91,8.493e-05,2]
[422935529,1779652232000,-2530.3173,8.493e-05,2]
[422935520,1779652232000,-571.82,8.493e-05,2]
[422935505,1779652232000,-500.0,8.493e-05,2]
[422935517,1779652232000,-502.64,8.493e-05,2]
[422935515,1779652232000,-500.0,8.493e-05,2]
[422935513,1779652232000,-293.7,8.493e-05,2]
[422935511,1779652232000,-500.0,8.493e-05,2]
[422935509,1779652232000,-500.0,8.493e-05,2]
[422935522,1779652232000,-222.73503852,8.493e-05,2]
[422935761,1779652239000,-503.13288605,8.766e-05,2]
[422935762,1779652239000,-503.13288605,8.766e-05,2]
[422935766,1779652239000,-503.13288605,8.766e-05,2]
[422935767,1779652239000,-503.13288605,8.766e-05,2]
[422935768,1779652239000,-503.13288605,8.766e-05,2]
[422935770,1779652239000,-503.13288605,8.766e-05,2]
[422935773,1779652239000,-503.13288605,8.766e-05,2]
[422935769,1779652239000,-503.13288605,8.766e-05,2]
[422935771,1779652239000,-503.13288605,8.766e-05,2]
[422935774,1779652239000,-503.13288605,8.766e-05,2]
[422935776,1779652239000,-503.13288605,8.766e-05,2]
[422935775,1779652239000,-503.13288605,8.766e-05,2]
[422935777,1779652239000,-503.13288605,8.766e-05,2]
[422935778,1779652239000,-503.13288605,8.766e-05,2]
[422935780,1779652239000,-500.0,8.767e-05,2]
[422935779,1779652239000,-503.13288605,8.766e-05,2]
[422935784,1779652239000,-500.0,8.767e-05,2]
[422935788,1779652239000,-500.0,8.767e-05,2]
[422935790,1779652239000,-500.0,8.767e-05,2]
[422935781,1779652239000,-500.0,8.767e-05,2]
[422935772,1779652239000,-503.13288605,8.766e-05,2]
[422935760,1779652239000,-503.13288605,8.766e-05,2]
[422935764,1779652239000,-503.13288605,8.766e-05,2]
[422935763,1779652239000,-503.13288605,8.766e-05,2]
[422935739,1779652239000,-500.0,8.49e-05,2]
[422935740,1779652239000,-500.0,8.49e-05,2]
[422935741,1779652239000,-443.90023408,8.764e-05,2]
[422935742,1779652239000,-500.63645847,8.764e-05,2]
[422935743,1779652239000,-501.02954793,8.764e-05,2]
[422935744,1779652239000,-500.0,8.764e-05,2]
[422935748,1779652239000,-505.64950213,8.764e-05,2]
[422935745,1779652239000,-139.79819774,8.764e-05,2]
[422935746,1779652239000,-360.20180226,8.764e-05,2]
[422935751,1779652239000,-500.0,8.764e-05,2]
[422935747,1779652239000,-384.12,8.764e-05,2]
[422935750,1779652239000,-508.8083877,8.764e-05,2]
[422935749,1779652239000,-510.21624502,8.764e-05,2]
[422935753,1779652239000,-500.0,8.764e-05,2]
[422935752,1779652239000,-500.0,8.764e-05,2]
[422935765,1779652239000,-503.13288605,8.766e-05,2]
[422935754,1779652239000,-500.0,8.766e-05,2]
[422935783,1779652239000,-500.0,8.767e-05,2]
[422935756,1779652239000,-438.64094971,8.766e-05,2]
[422935758,1779652239000,-503.13288605,8.766e-05,2]
[422935755,1779652239000,-503.13288605,8.766e-05,2]
[422935759,1779652239000,-503.13288605,8.766e-05,2]
[422935757,1779652239000,-503.13288605,8.766e-05,2]
[422935793,1779652239000,-500.0,8.767e-05,2]
[422935789,1779652239000,-540.58,8.767e-05,2]
[422935813,1779652239000,-500.0,8.767e-05,2]
[422935814,1779652239000,-225.98,8.916e-05,2]
[422935822,1779652239000,-500.0,9.038e-05,2]
[422935816,1779652239000,-177.72206282,8.924e-05,4]
[422935785,1779652239000,-500.0,8.767e-05,2]
[422935818,1779652239000,-171.97172555,8.936e-05,2]
[422935823,1779652239000,-500.0,9.038e-05,2]
[422935825,1779652239000,-223.5,9.038e-05,2]
[422935824,1779652239000,-500.0,9.038e-05,2]
[422935827,1779652239000,-647.84,9.041e-05,2]
[422935830,1779652239000,-163.88,9.041e-05,2]
[422935832,1779652239000,-500.0,9.041e-05,2]
[422935826,1779652239000,-500.0,9.041e-05,2]
[422935829,1779652239000,-215.04,9.041e-05,2]
[422935834,1779652239000,-500.0,9.041e-05,2]
[422935833,1779652239000,-512.49,9.041e-05,2]
[422935828,1779652239000,-268.74,9.041e-05,2]
[422935831,1779652239000,-500.0,9.041e-05,2]
[422935835,1779652239000,-500.0,9.041e-05,2]
[422935836,1779652239000,-204.82,9.041e-05,2]
[422935837,1779652239000,-577.01,9.041e-05,2]
[422935817,1779652239000,-305.45756787,8.93e-05,7]
[422935820,1779652239000,-476.3,9.038e-05,2]
[422935819,1779652239000,-181.1614608,8.936e-05,2]
[422935821,1779652239000,-500.0,9.038e-05,2]
[422935787,1779652239000,-500.0,8.767e-05,2]
[422935782,1779652239000,-500.0,8.767e-05,2]
[422935791,1779652239000,-182.07,8.767e-05,2]
[422935786,1779652239000,-500.0,8.767e-05,2]
[422935810,1779652239000,-500.0,8.767e-05,2]
[422935796,1779652239000,-397.01448677,8.767e-05,2]
[422935806,1779652239000,-500.0,8.767e-05,2]
[422935797,1779652239000,-500.0,8.767e-05,2]
[422935801,1779652239000,-500.0,8.767e-05,2]
[422935807,1779652239000,-500.0,8.767e-05,2]
[422935795,1779652239000,-500.0,8.767e-05,2]
[422935799,1779652239000,-500.0,8.767e-05,2]
[422935800,1779652239000,-500.0,8.767e-05,2]
[422935804,1779652239000,-500.0,8.767e-05,2]
[422935803,1779652239000,-500.0,8.767e-05,2]
[422935805,1779652239000,-500.0,8.767e-05,2]
[422935798,1779652239000,-500.0,8.767e-05,2]
[422935808,1779652239000,-500.0,8.767e-05,2]
[422935809,1779652239000,-381.14,8.767e-05,2]
[422935811,1779652239000,-592.82172734,8.767e-05,2]
[422935812,1779652239000,-571.82,8.767e-05,2]
[422935802,1779652239000,-500.0,8.767e-05,2]
[422935853,1779652240000,-500.0,9.315e-05,2]
[422935858,1779652240000,-500.0,9.586e-05,2]
[422935855,1779652240000,-358.06,9.315e-05,2]
[422935857,1779652240000,-338.96,9.361e-05,2]
[422935859,1779652240000,-500.0,9.586e-05,2]
[422935864,1779652240000,-571.82,9.589e-05,2]
[422935856,1779652240000,-1061.0,9.341e-05,2]
[422935862,1779652240000,-163.24,9.589e-05,2]
[422935865,1779652240000,-500.0,9.86e-05,2]
[422935863,1779652240000,-500.0,9.589e-05,2]
[422935852,1779652240000,-500.0,9.315e-05,2]
[422935854,1779652240000,-571.82,9.315e-05,2]
[422935860,1779652240000,-500.0,9.589e-05,2]
[422935867,1779652240000,-500.0,9.862e-05,2]
[422935851,1779652240000,-500.0,9.315e-05,2]
[422935849,1779652240000,-212.28,9.315e-05,2]
[422935848,1779652240000,-500.0,9.315e-05,2]
[422935846,1779652240000,-500.0,9.312e-05,2]
[422935845,1779652240000,-500.0,9.312e-05,2]
[422935844,1779652240000,-343.94345109,9.23e-05,2]
[422935843,1779652240000,-458.1863518,9.224e-05,7]
[422935841,1779652240000,-362.32292161,9.218e-05,2]
[422935847,1779652240000,-500.0,9.312e-05,2]
[422935840,1779652240000,-500.0,9.041e-05,2]
[422935839,1779652240000,-571.82,9.041e-05,2]
[422935842,1779652240000,-176.17310852,9.224e-05,7]
[422935838,1779652240000,-500.0,9.041e-05,2]
[422935850,1779652240000,-500.0,9.315e-05,2]
[422935866,1779652240000,-500.0,9.86e-05,2]
[422935868,1779652240000,-500.0,9.862e-05,2]
[422935870,1779652240000,-500.0,9.863e-05,2]
[422935869,1779652240000,-500.0,9.863e-05,2]
[422935902,1779652240000,-57.30001329,0.00011506,2]
[422935898,1779652240000,-514.51998671,0.00011506,2]
[422935892,1779652240000,-612.50376382,0.00010959,7]
[422935894,1779652240000,-571.82,0.00011232,2]
[422935893,1779652240000,-500.0,0.0001123,2]
[422935890,1779652240000,-306.25188191,0.00010959,7]
[422935891,1779652240000,-459.37782287,0.00010959,7]
[422935896,1779652240000,-765.62970478,0.00011253,7]
[422935897,1779652240000,-500.0,0.00011504,2]
[422935889,1779652240000,-153.12594096,0.00010959,7]
[422935888,1779652240000,-380.31187288,0.00010959,7]
[422935887,1779652240000,-190.15593644,0.00010959,7]
[422935885,1779652240000,-182.14801088,0.00010959,7]
[422935886,1779652240000,-364.29602176,0.00010959,7]
[422935880,1779652240000,-571.82,0.0001041,2]
[422935875,1779652240000,-500.0,0.00010136,2]
[422935879,1779652240000,-515.84,0.0001041,2]
[422935878,1779652240000,-500.0,0.00010408,2]
[422935883,1779652240000,-500.0,0.00010956,2]
[422935877,1779652240000,-223.26635735,0.00010353,2]
[422935873,1779652240000,-186.16,0.00010134,2]
[422935881,1779652240000,-500.0,0.00010682,2]
[422935884,1779652240000,-571.82,0.00010958,2]
[422935882,1779652240000,-571.82,0.00010684,2]
[422935876,1779652240000,-571.82,0.00010136,2]
[422935874,1779652240000,-177.72,0.00010136,2]
[422935872,1779652240000,-500.0,0.00010134,2]
[422935903,1779652240000,-395.40966671,0.00011695,7]
[422935871,1779652240000,-571.82,9.863e-05,2]
[422935905,1779652242000,-523.34597903,0.00011695,7]
[422935907,1779652242000,-571.82,0.0001178,2]
[422935910,1779652242000,-500.0,0.00012326,2]
[422935908,1779652242000,-500.0,0.00012052,2]
[422935906,1779652242000,-500.0,0.00011778,2]
[422935909,1779652242000,-571.82,0.00012054,2]
[422935932,1779652243000,-454.59629861,0.00013698,2]
[422935938,1779652243000,-160.0,0.00014426,2]
[422935936,1779652243000,-571.82,0.00014246,2]
[422935935,1779652243000,-571.82,0.00013972,2]
[422935937,1779652243000,-291.38151722,0.00014353,2]
[422935934,1779652243000,-1000.0,0.00013699,2]
[422935940,1779652243000,-572.01,0.0001452,2]
[422935939,1779652243000,-161.73758927,0.00014427,2]
[422935933,1779652243000,-117.22370139,0.00013698,2]
[422935931,1779652243000,-102.58777376,0.00013424,2]
[422935929,1779652243000,-571.82,0.0001315,2]
[422935928,1779652243000,-571.82,0.00012876,2]
[422935924,1779652243000,-500.0,8.493e-05,2]
[422935930,1779652243000,-469.23222624,0.00013424,2]
[422935925,1779652243000,-500.0,8.767e-05,2]
[422935926,1779652243000,-448.20004423,9.041e-05,2]
[422935923,1779652243000,-500.0,8.219e-05,2]
[422935914,1779652243000,-571.82,0.00012602,2]
[422935915,1779652243000,-284.25727047,0.00012874,2]
[422935913,1779652243000,-500.0,0.000126,2]
[422935912,1779652243000,-257.32393728,0.00012353,2]
[422935911,1779652243000,-571.82,0.00012328,2]
[422935943,1779652243000,-185.0,0.0001601,2]
[422935927,1779652243000,-236.60272953,0.00012874,2]
[422935942,1779652243000,-443.0,0.0001601,2]
[422935944,1779652243000,-150.0,0.0001601,2]
[422935947,1779652243000,-200.0,0.00016438,2]
[422935962,1779652243000,-156.0,0.00019629,120]
[422935967,1779652243000,-151.0,0.00019635,2]
[422935965,1779652243000,-165.0,0.00019629,120]
[422935966,1779652243000,-151.0,0.00019635,2]
[422935941,1779652243000,-194.8969098,0.00015068,2]
[422935960,1779652243000,-100000.0,0.00019619,2]
[422935961,1779652243000,-1000.0,0.0001962,5]
[422935957,1779652243000,-221.53141359,0.00019248,2]
[422935964,1779652243000,-154.0,0.00019629,120]
[422935959,1779652243000,-288.1142034,0.00019535,2]
[422935968,1779652243000,-151.0,0.00019635,2]
[422935969,1779652243000,-151.0,0.00019635,2]
[422935963,1779652243000,-3820.0,0.00019629,120]
[422935949,1779652243000,-500.0,0.00017695,5]
[422935958,1779652243000,-2723.03,0.00019452,2]
[422935946,1779652243000,-325.43909715,0.00016353,2]
[422935951,1779652243000,-2723.03,0.0001863,2]
[422935950,1779652243000,-359.49667709,0.00018353,2]
[422935956,1779652243000,-2723.03,0.00019178,2]
[422935945,1779652243000,-223.005,0.00016096,2]
[422935952,1779652243000,-456.7008753,0.00018813,2]
[422935955,1779652243000,-185.0,0.0001901,2]
[422935954,1779652243000,-443.0,0.0001901,2]
[422935953,1779652243000,-2723.03,0.00018904,2]
[422935948,1779652243000,-152.0,0.00017172,7]
[422935986,1779652244000,-151.0,0.00019635,2]
[422935972,1779652244000,-151.0,0.00019635,2]
[422935987,1779652244000,-151.0,0.00019635,2]
[422935984,1779652244000,-151.0,0.00019635,2]
[422935971,1779652244000,-151.0,0.00019635,2]
[422935980,1779652244000,-151.0,0.00019635,2]
[422935978,1779652244000,-151.0,0.00019635,2]
[422935979,1779652244000,-151.0,0.00019635,2]
[422935983,1779652244000,-151.0,0.00019635,2]
[422935981,1779652244000,-151.0,0.00019635,2]
[422935982,1779652244000,-151.0,0.00019635,2]
[422935975,1779652244000,-151.0,0.00019635,2]
[422935977,1779652244000,-151.0,0.00019635,2]
[422935976,1779652244000,-151.0,0.00019635,2]
[422935970,1779652244000,-151.0,0.00019635,2]
[422935985,1779652244000,-151.0,0.00019635,2]
[422935974,1779652244000,-151.0,0.00019635,2]
[422935988,1779652244000,-227.371381,0.00019635,2]
[422935973,1779652244000,-295.073083,0.00019635,2]
[422935995,1779652244000,-154.746976,0.00019635,2]
[422936005,1779652244000,-284.559636,0.00019635,2]
[422936007,1779652244000,-9907.0329549,0.00019635,30]
[422936006,1779652244000,-182814.78568248,0.00019635,30]
[422936003,1779652244000,-151.0,0.00019635,2]
[422935997,1779652244000,-151.0,0.00019635,2]
[422935999,1779652244000,-151.0,0.00019635,2]
[422936002,1779652244000,-151.0,0.00019635,2]
[422936000,1779652244000,-151.0,0.00019635,2]
[422936001,1779652244000,-260.790586,0.00019635,2]
[422935998,1779652244000,-151.0,0.00019635,2]
[422936004,1779652244000,-151.0,0.00019635,2]
[422935994,1779652244000,-151.0,0.00019635,2]
[422935992,1779652244000,-151.0,0.00019635,2]
[422935993,1779652244000,-205.596851,0.00019635,2]
[422935996,1779652244000,-151.0,0.00019635,2]
[422935991,1779652244000,-151.0,0.00019635,2]
[422935990,1779652244000,-151.0,0.00019635,2]
[422935989,1779652244000,-151.0,0.00019635,2]
[422936048,1779652246000,-575.41076325,0.00019635,30]
[422936049,1779652246000,-13554.37727593,0.00019635,30]
[422936047,1779652246000,-75888.00000001,0.00019635,30]
[422936046,1779652246000,-6938.71657891,0.00019635,30]
[422936050,1779652246000,-53523.3800993,0.00019635,30]
[422936051,1779652247000,-5070.47952164,0.00019635,30]
[422936052,1779652248000,-302.30455513,0.00019635,30]
[422936054,1779652248000,-3278.46,0.00019635,30]
[422936053,1779652248000,-304.0,0.00019635,30]
[422936056,1779652480000,-300.0,8.218e-05,2]
[422936058,1779652534000,-300.0,8.218e-05,2]
[422936060,1779652587000,-300.0,8.217e-05,2]
[422936061,1779652641000,-300.0,8.218e-05,2]
[422936062,1779652694000,-300.0,8.218e-05,2]
[422936063,1779652747000,-1200.0,8.218e-05,2]
[422936065,1779652783000,165.486915,4.635e-05,2]
[422936064,1779652783000,165.486915,3.708e-05,2]
[422936066,1779652801000,-152.0,5.562e-05,2]
[422936067,1779652820000,-13.486915,5.562e-05,2]
[422936068,1779652873000,-152.0,6.026e-05,2]
[422936069,1779652892000,-25.78382265,6.026e-05,2]
[422936071,1779653237000,-174.2281462,6.953e-05,2]
[422936070,1779653237000,-165.486915,6.489e-05,2]
[422936073,1779653237000,-38.22929926,8.217e-05,2]
[422936072,1779653237000,-165.486915,7.416e-05,2]
[422936074,1779653249000,-461.77070074,8.217e-05,2]
[422936075,1779653303000,-500.0,8.217e-05,2]
[422936084,1779653356000,-500.0,8.218e-05,2]
[422936076,1779653356000,-200.0,7.864e-05,2]
[422936077,1779653356000,-200.83,7.864e-05,7]
[422936079,1779653356000,-500.0,8.217e-05,2]
[422936078,1779653356000,-168.86584637,8.217e-05,2]
[422936081,1779653356000,-500.0,8.218e-05,2]
[422936080,1779653356000,-154.49077161,8.217e-05,2]
[422936082,1779653356000,-500.0,8.218e-05,2]
[422936083,1779653356000,-500.0,8.218e-05,2]
[422936085,1779653356000,-500.0,8.218e-05,2]
[422936097,1779653356000,-500.0,8.218e-05,2]
[422936088,1779653356000,-500.0,8.218e-05,2]
[422936089,1779653356000,-500.0,8.218e-05,2]
[422936087,1779653356000,-500.0,8.218e-05,2]
[422936090,1779653356000,-500.0,8.218e-05,2]
[422936091,1779653356000,-500.0,8.218e-05,2]
[422936092,1779653356000,-500.0,8.218e-05,2]
[422936094,1779653356000,-641.42894059,8.218e-05,2]
[422936093,1779653356000,-500.0,8.218e-05,2]
[422936095,1779653356000,-500.0,8.218e-05,2]
[422936096,1779653356000,-500.0,8.218e-05,2]
[422936086,1779653356000,-500.0,8.218e-05,2]
[422936113,1779653357000,-500.0,8.219e-05,2]
[422936112,1779653357000,-500.0,8.219e-05,2]
[422936111,1779653357000,-500.0,8.219e-05,2]
[422936114,1779653357000,-500.0,8.219e-05,2]
[422936120,1779653357000,-500.0,8.219e-05,2]
[422936115,1779653357000,-500.0,8.219e-05,2]
[422936117,1779653357000,-560.94,8.219e-05,2]